bitfinex-derivatives/quotes_SOLF0:USTF0_20251229
["timestamp","ask_amount","ask_price","bid_price","bid_amount"]
[1767001024431,93.16,126.63,126.51,110.8021]
[1767001024735,146.32750237,126.68,126.54,110.7758]
[1767001025025,146.32460237,126.68,126.55,203.9272]
[1767001025431,0.0511618,126.63,126.55,203.9262]
[1767001025732,35.66400237,126.68,126.55,203.9262]
[1767001025733,140.1085,126.68,126.55,203.9262]
[1767001025930,29.45,126.68,126.56,110.7585]
[1767001026132,29.45,126.68,126.57,29.92]
[1767001026337,110.6271,126.72,126.59,29.92]
[1767001026627,140.0848,126.71,126.58,233.8611]
[1767001026927,110.6414,126.7,126.59,29.92]
[1767001027130,141.46613335,126.7,126.59,29.92]
[1767001027339,147.68013572,126.7,126.59,29.92]
[1767001027528,0.05276761,126.66,126.63,0.05531295]
[1767001027825,0.05276761,126.66,126.56,29.92]
[1767001028025,140.1114,126.68,126.56,123.14]
[1767001028227,29.45,126.68,126.57,140.6694]
[1767001028626,140.1174,126.67,126.57,29.92]
[1767001028826,0.05727317,126.63,126.55,93.24]
[1767001029027,29.45,126.66,126.55,123.16]
[1767001029227,29.45,126.66,126.55,233.9268]
[1767001029519,29.45,126.66,126.57,110.749]
[1767001029930,0.05139183,126.63,126.6,0.05300979]
[1767001030133,30.82473335,126.7,126.59,29.92]
[1767001030429,30.82473335,126.7,126.58,110.7409]
[1767001030430,7.58873572,126.7,126.58,110.7409]
[1767001030628,29.45,126.69,126.59,26.79]
[1767001030825,7.58873572,126.7,126.59,26.79]
[1767001030826,1.37473335,126.7,126.59,26.79]
[1767001031020,0.05920656,126.66,126.63,0.05657119]
[1767001031921,0.05920656,126.66,126.57,23.36]
[1767001032126,29.45,126.69,126.58,93.28]
[1767001032637,29.45,126.67,126.58,93.28]
[1767001032932,0.05600263,126.64,126.61,0.050732]
[1767001033135,0.05600263,126.64,126.61,0.000732]
[1767001035131,0.05600263,126.64,126.55,93.3]
[1767001035326,29.45,126.65,126.55,93.32]
[1767001035528,29.45,126.65,126.55,110.7668]
[1767001035830,29.45,126.65,126.55,204.0868]
[1767001036236,93.28,126.67,126.59,0.05170955]
[1767001036432,24.45400237,126.72,126.6,3.72]
[1767001036736,18.24,126.71,126.61,93.32]
[1767001037336,0.05738461,126.67,126.65,0.05711828]
[1767001038735,18.24,126.71,126.65,0.05711828]
[1767001039739,0.05816318,126.69,126.65,0.05711828]
[1767001040035,18.24,126.74,126.66,0.05832504]
[1767001040240,18.24,126.74,126.65,93.34]
[1767001040842,7.1108,126.73,126.65,93.34]
[1767001041138,0.0548828,126.7,126.68,0.0505572]
[1767001041941,18.24,126.74,126.68,0.0505572]
[1767001042238,18.24,126.78,126.68,110.7039572]
[1767001042540,18.24,126.82,126.7,110.6369]
[1767001042740,128.7752,126.82,126.69,116.86050237]
[1767001043038,0.05064125,126.77,126.74,0.05935727]
[1767001043240,0.05064125,126.77,126.74,0.05919736]
[1767001043440,6.21400237,126.85,126.74,112.24229736]
[1767001043441,18.24,126.85,126.74,112.24229736]
[1767001043640,18.24,126.85,126.73,110.6099]
[1767001043840,18.24,126.85,126.75,7.1091]
[1767001044336,18.24,126.85,126.79,0.05985175]
[1767001044544,0.05989019,126.81,126.79,0.05985175]
[1767001045036,18.24,126.87,126.79,0.05985175]
[1767001045242,18.24,126.87,126.76,7.1087]
[1767001045439,18.24,126.87,126.73,110.6099]
[1767001045440,18.24,126.85,126.73,110.6099]
[1767001045629,18.24,126.84,126.73,110.6117]
[1767001045831,18.24,126.84,126.74,93.34]
[1767001046031,0.05210088,126.8,126.78,0.06071924]
[1767001046739,0.05210088,126.8,126.75,93.34]
[1767001047162,142.13740237,126.78,126.65,110.6822]
[1767001047350,18.24,126.77,126.66,110.6722]
[1767001047653,111.56,126.8,126.69,110.6429]
[1767001047858,25.3473,126.8,126.68,110.6545]
[1767001048061,25.3473,126.8,126.69,110.6465]
[1767001048250,25.3473,126.8,126.69,7.1126]
[1767001048456,25.3478,126.79,126.68,93.32]
[1767001048647,18.24,126.78,126.68,93.32]
[1767001048851,0.05000357,126.74,126.72,0.05978665]
[1767001050254,0.05000357,126.74,126.68,93.32]
[1767001051148,18.29000357,126.74,126.7,0.00311679]
[1767001051353,18.24,126.74,126.7,0.00311679]
[1767001051758,110.589,126.76,126.7,0.00311679]
[1767001051946,18.24,126.76,126.7,0.00311679]
[1767001052253,0.05826741,126.74,126.7,0.00311679]
[1767001053170,0.05826741,126.74,126.62,7.1166]
[1767001053171,7.1116,126.72,126.62,7.1166]
[1767001053455,31.72271055,126.72,126.62,7.1166]
[1767001053647,6.37184593,126.71,126.62,7.1166]
[1767001053848,13.48404593,126.71,126.61,93.32]
[1767001054060,31.72404593,126.71,126.61,93.32]
[1767001054254,0.0521613,126.67,126.65,0.05558876]
[1767001054460,0.0521613,126.67,126.6,100.4378]
[1767001054853,0.0521613,126.67,126.61,110.7169]
[1767001055155,0.0521613,126.67,126.59,110.7346]
[1767001055355,6.37789309,126.7,126.62,0.0499651]
[1767001055663,6.37789309,126.7,126.6,7.1177]
[1767001056255,6.37789309,126.7,126.61,7.1172]
[1767001056455,0.0563645,126.67,126.64,0.05304676]
[1767001058959,6.37789309,126.7,126.64,0.05304676]
[1767001059167,2.87789309,126.7,126.64,93.39304676]
[1767001059356,7.1108,126.73,126.64,93.39304676]
[1767001059658,7.1108,126.73,126.64,93.34]
[1767001059862,18.24,126.74,126.64,100.4556]
[1767001060058,0.05873986,126.7,126.68,0.05857626]
[1767001060569,0.05873986,126.7,126.65,93.34]
[1767001061566,0.05873986,126.7,126.66,0.05785364]
[1767001064661,0.05873986,126.7,126.64,93.34]
[1767001064662,110.6672,126.67,126.54,110.7768]
[1767001064967,18.24,126.64,126.55,93.34]
[1767001065163,18.24,126.63,126.55,93.34]
[1767001065359,18.24,126.63,126.54,93.34]
[1767001065663,7.116,126.64,126.48,110.823]
[1767001065664,3.31,126.59,126.48,110.823]
[1767001065962,3.31,126.59,126.43,457.7382]
[1767001065963,110.7523,126.57,126.49,93.34]
[1767001066172,7.1206,126.56,126.49,93.34]
[1767001066355,3.31,126.57,126.46,204.1885]
[1767001066667,0.05647345,126.53,126.5,0.05538265]
[1767001067261,3.31,126.57,126.5,0.05538265]
[1767001068371,0.05120215,126.55,126.5,0.05538265]
[1767001068969,0.05120215,126.55,126.5,110.86808265]
[1767001069171,3.31,126.57,126.5,0.05538265]
[1767001070174,0.05585528,126.55,126.5,0.05538265]
[1767001071271,3.36585528,126.55,126.5,0.05538265]
[1767001071666,0.05585528,126.55,126.5,0.05538265]
[1767001075968,7.1189,126.59,126.5,0.05538265]
[1767001076169,7.1189,126.59,126.48,110.823]
[1767001076373,10.4389,126.59,126.48,117.9475]
[1767001076680,3.32,126.56,126.48,93.42]
[1767001076871,0.05803618,126.53,126.51,0.05063237]
[1767001081775,0.05803618,126.53,126.46,7.1257]
[1767001081977,7.1216,126.54,126.45,93.44]
[1767001082178,3.32,126.54,126.45,93.44]
[1767001082870,0.0003241,126.51,126.48,0.05484219]
[1767001083175,3.32,126.54,126.45,93.44]
[1767001083390,114.1013,126.54,126.45,93.44]
[1767001083579,96.76,126.57,126.45,204.2949]
[1767001083882,0.05965946,126.52,126.5,0.05283026]
[1767001084090,3.32,126.56,126.5,0.05283026]
[1767001084379,10.4389,126.59,126.5,0.05283026]
[1767001084577,10.4389,126.59,126.5,93.46]
[1767001085183,10.4389,126.59,126.53,0.05312909]
[1767001085184,0.05549382,126.56,126.53,0.05312909]
[1767001085384,3.32,126.59,126.53,0.05312909]
[1767001085884,3.32,126.59,126.53,0.00312909]
[1767001085885,114.0583,126.59,126.53,0.00312909]
[1767001086081,3.32,126.58,126.53,0.00312909]
[1767001086283,3.32,126.56,126.53,0.00312909]
[1767001086472,3.32,126.55,126.45,93.46]
[1767001086672,7.1218,126.54,126.46,7.1256]
[1767001087677,204.1971,126.57,126.46,7.1256]
[1767001087678,3.32,126.58,126.49,0.05384408]
[1767001087881,3.32,126.58,126.46,110.8452]
[1767001087882,3.32,126.58,126.47,110.837]
[1767001088085,10.4396,126.58,126.49,7.1241]
[1767001088285,110.7163,126.62,126.49,110.8206]
[1767001088480,96.78,126.61,126.49,110.8206]
[1767001088683,0.0595756,126.56,126.54,0.05147737]
[1767001088985,0.0595756,126.56,126.54,0.00147737]
[1767001088986,0.05968038,126.56,126.54,0.00147737]
[1767001089188,3.37968038,126.56,126.47,93.46]
[1767001089487,3.32,126.56,126.47,93.46]
[1767001090075,0.05267283,126.53,126.5,0.05686183]
[1767001091382,110.7471,126.58,126.5,0.05686183]
[1767001091383,3.32,126.59,126.52,7.1221]
[1767001091686,3.32,126.59,126.51,110.8034]
[1767001091892,110.6975,126.64,126.51,110.8034]
[1767001091893,3.32,126.63,126.51,110.8034]
[1767001092081,3.32,126.65,126.54,110.7772]
[1767001092282,3.32,126.65,126.58,0.06002488]
[1767001092482,10.4355,126.65,126.58,0.06002488]
[1767001093187,3.32,126.63,126.58,0.06002488]
[1767001093388,3.34973332,126.62,126.58,2.488e-05]
[1767001093575,10.4378,126.61,126.58,2.488e-05]
[1767001094284,3.32,126.61,126.58,2.488e-05]
[1767001094479,0.02973332,126.62,126.58,2.488e-05]
[1767001096895,3.26,126.67,126.58,2.488e-05]
[1767001097083,3.26,126.67,126.56,93.44]
[1767001097284,7.1154,126.65,126.57,7.1196]
[1767001097689,3.26,126.67,126.57,7.1196]
[1767001097996,204.0997,126.68,126.61,0.04985238]
[1767001097997,0.04996511,126.63,126.61,0.04985238]
[1767001098184,3.26,126.68,126.61,0.04985238]
[1767001100293,3.26,126.68,126.61,7.16715238]
[1767001101594,103.7923,126.71,126.62,7.1167]
[1767001101790,103.7923,126.71,126.65,0.05640859]
[1767001101996,10.3726,126.7,126.65,0.05640859]
[1767001102584,3.26,126.66,126.58,7.1191]
[1767001102789,3.26,126.66,126.56,93.42]
[1767001103598,0.05058111,126.62,126.6,0.05261537]
[1767001104693,0.05058111,126.62,126.52,110.7936]
[1767001104899,3.26,126.63,126.53,110.7868]
[1767001105297,3.26,126.63,126.55,7.1204]
[1767001105796,0.05907195,126.6,126.58,0.05914583]
[1767001106893,3.26,126.63,126.58,0.05914583]
[1767001107493,12.86524895,126.66,126.58,0.05914583]
[1767001107694,10.375,126.66,126.55,110.7673]
[1767001107894,3.26,126.66,126.59,7.17151988]
[1767001109199,7.1139,126.68,126.59,7.17151988]
[1767001109501,9.01841737,126.69,126.62,0.05246577]
[1767001110601,3.26,126.69,126.62,0.05246577]
[1767001111496,3.26,126.68,126.62,0.00246577]
[1767001112404,3.26,126.67,126.62,0.00246577]
[1767001112705,0.05031086,126.66,126.62,0.00246577]
[1767001113699,0.05031086,126.66,126.62,7.11926577]
[1767001114214,0.05031086,126.66,126.62,0.00246577]
[1767001115703,0.05031086,126.66,126.62,7.11916577]
[1767001118103,0.05031086,126.66,126.62,0.00246577]
[1767001119208,0.05031086,126.66,126.62,7.11916577]
[1767001119806,0.05031086,126.66,126.62,0.00246577]
[1767001120905,0.05031086,126.66,126.62,7.11926577]
[1767001121101,0.05031086,126.66,126.62,0.00246577]
[1767001121306,0.05031086,126.66,126.62,7.11936577]
[1767001121605,3.16,126.74,126.63,110.6979]
[1767001121811,3.16,126.74,126.64,110.6889]
[1767001122112,7.1109,126.73,126.65,93.4]
[1767001122813,3.16,126.72,126.68,0.05743044]
[1767001125017,10.2702,126.74,126.68,0.05743044]
[1767001126106,3.16,126.74,126.68,7.17093044]
[1767001126901,3.16,126.77,126.69,7.1129]
[1767001127109,3.16,126.77,126.72,0.0596141]
[1767001127407,3.16,126.76,126.65,110.6786]
[1767001127599,3.16,126.76,126.68,93.38]
[1767001128002,7.1097,126.75,126.68,100.4935]
[1767001128198,3.16,126.76,126.68,100.4935]
[1767001128405,0.0596141,126.73,126.68,93.38]
[1767001128908,0.0596141,126.73,126.68,100.4934]
[1767001129411,0.0596141,126.73,126.69,0.0577393]
[1767001131315,0.0596141,126.73,126.69,7.1706393]
[1767001132017,0.0596141,126.73,126.69,0.0577393]
[1767001132721,3.2196141,126.73,126.69,0.0577393]
[1767001133418,3.2196141,126.73,126.67,93.36]
[1767001133608,3.16,126.73,126.67,93.36]
[1767001134213,3.16,126.73,126.67,100.474]
[1767001134424,0.05270118,126.71,126.69,0.06007375]
[1767001136715,0.00270118,126.71,126.69,0.06007375]
[1767001137919,0.00270118,126.71,126.69,7.17297375]
[1767001140521,0.00270118,126.71,126.69,0.06007375]
[1767001140926,3.44270118,126.71,126.6,110.719]
[1767001141120,3.44,126.71,126.61,110.7114]
[1767001141310,3.44,126.71,126.61,204.0514]
[1767001141516,3.44,126.71,126.61,110.7114]
[1767001141818,3.44,126.71,126.62,93.34]
[1767001142018,0.05891094,126.68,126.65,0.05350866]
[1767001142416,3.44,126.71,126.66,93.34]
[1767001143525,0.00310133,126.7,126.66,93.34]
[1767001143723,0.00310133,126.7,126.66,7.1144]
[1767001143932,0.00310133,126.7,126.67,93.34]
[1767001144620,0.00310133,126.7,126.67,93.39723882]
[1767001145420,0.00310133,126.7,126.67,0.05723882]
[1767001145628,0.00310133,126.7,126.67,93.39723882]
[1767001145923,0.00310133,126.7,126.67,0.05723882]
[1767001146124,0.00310133,126.7,126.67,93.39723882]
[1767001146826,0.00310133,126.7,126.65,93.34]
[1767001147031,3.44,126.71,126.65,93.34]
[1767001147921,3.44,126.71,126.67,0.05035349]
[1767001147922,0.05184466,126.69,126.67,0.05035349]
[1767001148323,3.44,126.68,126.58,110.7383]
[1767001148631,3.44,126.68,126.57,110.745]
[1767001148632,3.44,126.68,126.59,93.34]
[1767001148927,3.44,126.68,126.56,6.23872923]
[1767001148928,3.44,126.66,126.58,7.119]
[1767001149121,3.44,126.66,126.59,93.34]
[1767001149425,3.44,126.66,126.55,7.1206]
[1767001149426,10.61451056,126.64,126.55,7.1206]
[1767001149725,10.5559,126.64,126.56,93.34]
[1767001150123,7.1166,126.63,126.56,93.34]
[1767001150327,0.05060545,126.61,126.58,0.05680281]
[1767001150522,0.00060545,126.61,126.58,0.05680281]
[1767001151921,0.00060545,126.61,126.58,100.53580281]
[1767001153018,0.00060545,126.61,126.59,7.1185]
[1767001153224,3.44,126.71,126.59,110.7339]
[1767001153425,3.44,126.71,126.6,93.36]
[1767001153735,3.44,126.71,126.62,7.1168]
[1767001153736,7.1135,126.69,126.62,7.1168]
[1767001153917,3.44,126.71,126.62,7.1168]
[1767001154231,0.05838973,126.68,126.65,0.05430394]
[1767001155034,3.49838973,126.68,126.65,0.00430394]
[1767001155635,0.05838973,126.68,126.65,0.00430394]
[1767001157321,7.1124,126.71,126.65,0.00430394]
[1767001157523,3.41,126.72,126.65,0.00430394]
[1767001158531,0.05818612,126.7,126.65,0.00430394]
[1767001159932,0.05818612,126.7,126.65,7.11940394]
[1767001160319,0.05818612,126.7,126.65,100.47940394]
[1767001161930,0.05818612,126.7,126.65,7.11940394]
[1767001162638,3.46818612,126.7,126.59,110.7314]
[1767001162944,3.41,126.7,126.6,93.36]
[1767001163322,3.41,126.69,126.61,7.1171]
[1767001163737,0.05574319,126.66,126.64,0.05044237]
[1767001164423,3.41,126.69,126.64,0.05044237]
[1767001164627,7.1129,126.7,126.64,0.05044237]
[1767001165429,0.05074113,126.68,126.64,0.05044237]
[1767001167336,0.05074113,126.68,126.64,7.16604237]
[1767001167532,10.5217,126.72,126.64,7.16604237]
[1767001167734,10.5217,126.72,126.64,7.1156]
[1767001168636,0.05548636,126.69,126.67,0.05471969]
[1767001170435,3.41,126.77,126.67,93.41471969]
[1767001170635,3.41,126.77,126.67,93.36]
[1767001171242,3.41,126.77,126.66,93.36]
[1767001171544,0.02626692,126.73,126.7,0.05700098]
[1767001172846,7.109,126.77,126.7,0.05700098]
[1767001173143,10.519,126.77,126.7,0.05700098]
[1767001173534,10.5192,126.76,126.7,0.05700098]
[1767001173743,3.41,126.75,126.67,100.4737]
[1767001173944,3.41,126.75,126.7,0.05972786]
[1767001174650,3.41,126.75,126.67,93.36]
[1767001175643,0.04995211,126.72,126.7,0.05207089]
[1767001177650,0.04995211,126.72,126.7,0.00207089]
[1767001180547,3.41,126.75,126.7,0.00207089]
[1767001181452,0.05335945,126.74,126.7,0.00207089]
[1767001182956,3.46335945,126.74,126.7,0.00207089]
[1767001184655,10.57365945,126.74,126.7,0.00207089]
[1767001185362,3.46335945,126.74,126.7,0.00207089]
[1767001185860,0.05335945,126.74,126.7,0.00207089]
[1767001187148,3.41,126.77,126.71,2.32846551]
[1767001187552,3.41,126.77,126.71,95.66846551]
[1767001187754,3.41,126.77,126.71,93.34]
[1767001188354,7.1082,126.78,126.73,0.0573238]
[1767001188556,10.5182,126.78,126.73,0.0573238]
[1767001189352,7.1093,126.76,126.73,0.0573238]
[1767001189558,3.41,126.75,126.68,2.32846551]
[1767001189957,3.41,126.75,126.67,93.34]
[1767001190152,3.41,126.75,126.68,2.32846551]
[1767001190563,0.05282499,126.73,126.7,0.05452406]
[1767001191359,3.46282499,126.73,126.7,0.00452406]
[1767001191558,3.46282499,126.73,126.63,110.6928]
[1767001191559,5.73846551,126.72,126.64,2.32846551]
[1767001191764,3.41,126.72,126.64,2.32846551]
[1767001192766,0.0536655,126.69,126.67,0.05484367]
[1767001194666,3.41,126.72,126.67,7.16884367]
[1767001195669,0.05822185,126.71,126.67,7.16884367]
[1767001196570,3.49,126.75,126.67,93.39484367]
[1767001196770,3.49,126.75,126.67,93.34]
[1767001197170,3.49,126.75,126.69,7.1128]
[1767001197671,3.49,126.75,126.71,0.05022722]
[1767001197867,7.1096,126.76,126.71,0.05022722]
[1767001198169,10.5984,126.78,126.71,0.05022722]
[1767001198765,3.49,126.78,126.71,93.39022722]
[1767001199664,7.1073,126.8,126.73,7.1105]
[1767001199865,7.1073,126.8,126.75,0.05513482]
[1767001200067,10.5973,126.8,126.75,0.05513482]
[1767001200369,3.49,126.8,126.75,0.05513482]
[1767001200963,3.49,126.82,126.75,0.05513482]
[1767001201169,3.49,126.84,126.76,107.6945]
[1767001201365,3.49,126.84,126.79,0.05959913]
[1767001202372,3.49,126.84,126.79,93.37959913]
[1767001202574,3.49,126.88,126.79,93.37959913]
[1767001202776,3.49,126.88,126.82,0.05767091]
[1767001203277,3.49,126.87,126.82,0.05767091]
[1767001203675,3.49,126.93,126.82,110.58677091]
[1767001203870,3.49,126.93,126.83,93.32]
[1767001204376,3.49,126.92,126.83,93.32]
[1767001204675,3.49,126.87,126.77,93.32]
[1767001204864,3.49,126.87,126.76,110.5829]
[1767001204865,0.05664941,126.83,126.81,0.05881876]
[1767001205070,0.05664941,126.83,126.77,93.32]
[1767001205571,3.54664941,126.83,126.74,110.5959]
[1767001205766,3.49,126.83,126.75,93.3]
[1767001205969,0.05192733,126.8,126.78,0.05887547]
[1767001209966,0.05192733,126.8,126.73,7.1104]
[1767001210178,0.05192733,126.8,126.74,93.28]
[1767001210378,0.05192733,126.8,126.73,93.28]
[1767001210577,3.54192733,126.8,126.68,110.6483]
[1767001210767,3.54192733,126.8,126.69,93.28]
[1767001210768,7.1082,126.78,126.69,93.28]
[1767001211091,0.05539742,126.75,126.72,0.05133592]
[1767001211978,0.05539742,126.75,126.67,7.1138]
[1767001212178,3.49,126.76,126.67,100.3938]
[1767001212577,3.49,126.75,126.67,100.3938]
[1767001213074,10.5983,126.78,126.7,0.05040117]
[1767001213277,10.5983,126.78,126.67,203.9424]
[1767001213475,203.8342,126.8,126.67,93.28]
[1767001213476,3.49,126.77,126.67,93.28]
[1767001213675,3.49,126.77,126.66,110.6709]
[1767001213884,3.49,126.77,126.67,93.28]
[1767001214187,0.05785324,126.73,126.71,0.05015585]
[1767001214884,3.49,126.77,126.71,0.05015585]
[1767001215991,0.05939915,126.75,126.71,0.05015585]
[1767001216992,3.31939915,126.75,126.71,0.05015585]
[1767001217285,0.05939915,126.75,126.71,0.05015585]
[1767001219791,3.26,126.74,126.64,93.3]
[1767001220688,0.0584952,126.7,126.68,0.05484561]
[1767001222091,10.3704,126.74,126.68,0.05484561]
[1767001222990,0.05446581,126.72,126.68,0.05484561]
[1767001225997,3.26,126.7,126.64,93.3]
[1767001226194,3.26,126.7,126.63,7.1161]
[1767001226585,3.26,126.69,126.61,7.1171]
[1767001226780,3.26,126.69,126.59,110.7301]
[1767001226981,0.05600626,126.65,126.63,0.05510091]
[1767001227785,3.26,126.69,126.63,0.05510091]
[1767001228403,10.3718,126.72,126.63,0.05510091]
[1767001228594,10.3718,126.72,126.62,204.0243]
[1767001228896,0.05593854,126.68,126.66,0.05889775]
[1767001229494,3.31593854,126.68,126.62,93.32]
[1767001229695,3.26,126.67,126.58,110.7416]
[1767001230594,0.0601451,126.64,126.61,0.05892366]
[1767001231596,3.26,126.67,126.61,7.17622366]
[1767001232601,0.05643892,126.65,126.61,7.17622366]
[1767001233194,0.05643892,126.65,126.62,7.1167]
[1767001233903,0.05643892,126.65,126.61,0.05892366]
[1767001234898,3.26,126.64,126.61,0.05892366]
[1767001236403,0.05643892,126.65,126.61,0.05892366]
[1767001236800,0.05643892,126.65,126.61,7.17612366]
[1767001238093,0.05643892,126.65,126.62,7.1168]
[1767001238294,0.05643892,126.65,126.61,0.05892366]
[1767001239002,3.26,126.69,126.62,7.1168]
[1767001240204,0.05263914,126.67,126.64,0.06079924]
[1767001240405,0.05263914,126.67,126.64,0.00079924]
[1767001242214,3.31263914,126.67,126.64,0.00079924]
[1767001246814,0.05263914,126.67,126.64,0.00079924]
[1767001248206,3.44,126.7,126.64,7.11579924]
[1767001249310,0.05828011,126.68,126.64,7.11579924]
[1767001252000,3.49828011,126.68,126.64,0.00079924]
[1767001253009,3.49828011,126.68,126.59,7.1174]
[1767001253214,3.49828011,126.68,126.56,204.1045]
[1767001253215,3.44,126.68,126.56,204.1045]
[1767001253513,3.44,126.68,126.56,7.1194]
[1767001253514,3.41,126.65,126.56,7.1194]
[1767001254117,0.64214068,126.62,126.54,7.1204]
[1767001254505,110.701,126.62,126.51,93.36]
[1767001254706,110.7199,126.6,126.47,110.8285]
[1767001255009,3.41,126.58,126.47,0.57]
[1767001255206,0.05361987,126.54,126.51,0.05737575]
[1767001255408,0.05361987,126.54,126.51,0.05166564]
[1767001256817,3.46361987,126.54,126.51,0.05166564]
[1767001257120,3.41,126.51,126.41,16.36559843]
[1767001257417,3.41,126.51,126.42,120.32450472]
[1767001257615,3.41,126.51,126.42,213.70450472]
[1767001257920,0.05011956,126.48,126.45,0.05193758]
[1767001259213,3.41,126.51,126.45,0.05193758]
[1767001260421,0.05681457,126.49,126.45,0.05193758]
[1767001260621,3.46681457,126.49,126.45,0.00193758]
[1767001260822,3.46681457,126.49,126.41,13.16559843]
[1767001261028,3.46681457,126.49,126.36,120.37010472]
[1767001261029,3.41,126.46,126.36,114.1219]
[1767001261321,110.8394,126.46,126.35,93.42]
[1767001261516,117.11000472,126.44,126.33,3.2]
[1767001261713,0.05978402,126.4,126.37,0.06050803]
[1767001261914,0.05426125,126.4,126.37,0.05570285]
[1767001262117,0.05426125,126.4,126.32,96.64]
[1767001262320,110.8559,126.44,126.32,96.64]
[1767001262520,204.2578,126.46,126.34,3.2]
[1767001262719,110.8489,126.45,126.34,3.2]
[1767001262918,204.2689,126.45,126.34,3.2]
[1767001263114,0.05882124,126.41,126.38,0.05685898]
[1767001263315,0.05882124,126.41,126.34,3.2]
[1767001263718,0.05882124,126.41,126.32,93.44]
[1767001263923,0.05882124,126.41,126.31,3.2]
[1767001263924,110.8818,126.41,126.31,3.2]
[1767001264226,0.05501057,126.37,126.35,0.05969964]
[1767001264417,118.0101,126.41,126.31,3.2]
[1767001264616,110.891,126.4,126.31,3.2]
[1767001264823,7.1296,126.39,126.31,3.2]
[1767001265223,117.13480472,126.41,126.31,3.2]
[1767001265417,0.05798738,126.37,126.35,0.0008163]
[1767001266018,1.58,126.36,126.28,3.2]
[1767001266220,110.9703,126.31,126.18,111.0831]
[1767001266420,110.9703,126.31,126.18,114.2831]
[1767001266630,6.25290472,126.32,126.2,111.064]
[1767001266835,6.25290472,126.32,126.21,3.2]
[1767001267125,6.25290472,126.36,126.25,0.05680853]
[1767001267336,117.18200472,126.36,126.25,3.2]
[1767001267525,93.48,126.37,126.26,114.2099]
[1767001267723,110.9105,126.38,126.26,10.3361]
[1767001267920,117.17860472,126.36,126.26,3.2]
[1767001268122,0.05050307,126.32,126.3,0.05998062]
[1767001268316,93.5,126.4,126.28,114.1943]
[1767001268532,93.5,126.4,126.29,114.182]
[1767001268831,117.15470472,126.39,126.29,3.2]
[1767001269033,118.0392,126.38,126.27,93.5]
[1767001269230,0.05686844,126.34,126.25,10.3369]
[1767001269530,124.31200472,126.36,126.23,10.3381]
[1767001269829,110.9436,126.34,126.23,3.2]
[1767001270027,204.4636,126.34,126.23,3.2]
[1767001270229,204.4636,126.34,126.18,111.0754]
[1767001270230,7.1341,126.31,126.2,3.2]
[1767001270537,110.936,126.35,126.2,3.2]
[1767001270538,204.456,126.35,126.24,0.05587294]
[1767001270736,118.0761,126.34,126.22,7.1384]
[1767001270940,117.18440472,126.36,126.23,111.0351]
[1767001271128,110.9437,126.34,126.22,3.2]
[1767001271531,0.05191472,126.29,126.22,3.2]
[1767001271833,0.05191472,126.29,126.19,3.2]
[1767001272035,7.1346,126.3,126.19,10.3401]
[1767001272435,13.38750472,126.3,126.19,96.74]
[1767001272630,0.05748371,126.26,126.23,0.05242739]
[1767001272830,93.54,126.31,126.23,0.05004253]
[1767001273028,93.54,126.31,126.21,3.2]
[1767001273334,93.54,126.31,126.21,10.339]
[1767001273836,0.05702497,126.27,126.25,0.0534587]
[1767001274632,118.072,126.35,126.25,0.0534587]
[1767001274837,7.1317,126.35,126.24,3.2]
[1767001275034,93.56,126.36,126.25,118.1586]
[1767001275234,93.56,126.36,126.26,96.78]
[1767001275433,210.73830472,126.36,126.23,114.3487]
[1767001275734,0.05873557,126.31,126.28,0.00063051]
[1767001275939,0.05873557,126.31,126.23,3.31]
[1767001276147,99.81290472,126.36,126.25,114.3319]
[1767001276444,93.56,126.36,126.26,3.31]
[1767001276643,0.05905248,126.32,126.3,0.04991518]